fUSD/lending_fUSD_20251103
["ID","MTS","AMOUNT","RATE_DAILY","PERIOD"]
[392950674,1762168210191,500.0,0.00036954,120]
[392950675,1762168210526,500.0,0.00036954,120]
[392950676,1762168210834,500.0,0.00036954,120]
[392950677,1762168210965,500.0,0.00036954,120]
[392950678,1762168211150,500.0,0.00036954,120]
[392950679,1762168211381,500.0,0.00036954,120]
[392950680,1762168211662,500.0,0.00036954,120]
[392950681,1762168211888,500.0,0.00036954,120]
[392950682,1762168211973,351.28513969,0.00036954,120]
[392950683,1762168212116,500.0,0.00036954,120]
[392950684,1762168212411,500.0,0.00036954,120]
[392950685,1762168212713,408.1070221,0.00036954,120]
[392950686,1762168213991,249.99649909,0.00036954,120]
[392950687,1762168214227,271.18750656,0.00036954,120]
[392950688,1762168214322,19750.49704215,0.00036954,120]
[392950689,1762168215201,227.55344689,0.00036954,120]
[392950690,1762168216005,366.72964196,0.00036954,120]
[392950691,1762168217005,155.76957747,0.00036954,120]
[392950692,1762168217799,329.11573734,0.00036954,120]
[392950693,1762168218165,463.48933574,0.00036954,120]
[392950694,1762168218543,281.7125186,0.00036954,120]
[392950695,1762168218973,300.0,0.00036954,120]
[392950696,1762168219571,300.0,0.00036954,120]
[392950697,1762168219665,195.8764793,0.00036954,120]
[392950698,1762168219752,430.94727693,0.00036954,120]
[392950699,1762168219848,300.0,0.00036954,120]
[392950700,1762168220073,300.0,0.00036954,120]
[392950701,1762168220310,300.0,0.00036954,120]
[392950702,1762168220397,168.63416669,0.00036954,120]
[392950703,1762168220699,300.0,0.00036954,120]
[392950704,1762168220783,199.23016603,0.00036954,120]
[392950705,1762168220873,300.0,0.00036954,120]
[392950706,1762168221050,300.0,0.00036954,120]
[392950707,1762168221160,279.10562386,0.00036954,120]
[392950708,1762168221301,300.0,0.00036954,120]
[392950709,1762168221590,300.0,0.00036954,120]
[392950710,1762168221833,300.0,0.00036954,120]
[392950711,1762168222060,300.0,0.00036954,120]
[392950712,1762168222301,300.0,0.00036954,120]
[392950713,1762168222553,300.0,0.00036954,120]
[392950714,1762168222787,300.0,0.00036954,120]
[392950715,1762168223016,300.0,0.00036954,120]
[392950716,1762168223137,415.80347452,0.00036954,120]
[392950717,1762168223256,300.0,0.00036954,120]
[392950718,1762168223569,300.0,0.00036954,120]
[392950719,1762168223795,332.7707973,0.00036954,120]
[392950720,1762168223903,307.38596823,0.00036954,120]
[392950721,1762168224976,455.15587834,0.00036954,120]
[392950722,1762168225217,362.92619708,0.00036954,120]
[392950723,1762168225301,416.37423104,0.00036954,120]
[392950724,1762168225628,500.0,0.00036954,120]
[392950725,1762168225754,500.0,0.00036954,120]
[392950726,1762168225861,500.0,0.00036954,120]
[392950727,1762168225975,500.0,0.00036954,120]
[392950728,1762168226157,500.0,0.00036954,120]
[392950729,1762168226395,500.0,0.00036954,120]
[392950730,1762168226626,500.0,0.00036954,120]
[392950731,1762168226863,500.0,0.00036954,120]
[392950732,1762168227106,500.0,0.00036954,120]
[392950733,1762168227276,428.82671609,0.00036954,120]
[392950734,1762168227362,446.62643319,0.00036954,120]
[392950735,1762168228731,185.35442542,0.00036954,120]
[392950736,1762168230200,500.0,0.00036954,120]
[392950737,1762168230287,500.0,0.00036954,120]
[392950738,1762168230375,305.8031597,0.00036954,120]
[392950739,1762168230484,500.0,0.00036954,120]
[392950741,1762168230678,500.0,0.00036954,120]
[392950742,1762168230948,500.0,0.00036954,120]
[392950743,1762168231062,500.0,0.00036954,120]
[392950744,1762168231148,500.0,0.00036954,120]
[392950745,1762168231252,500.0,0.00036954,120]
[392950746,1762168231346,583.41653671,0.00036954,120]
[392950747,1762168231449,422.70477855,0.00036954,120]
[392950748,1762168231532,500.0,0.00036954,120]
[392950749,1762168231643,500.0,0.00036954,120]
[392950753,1762168231888,500.0,0.00036954,120]
[392950754,1762168232095,-51.89995044,0.00014324,2]
[392950755,1762168232106,-209.61201441,0.00014396,2]
[392950756,1762168232116,-466.14613208,0.00014424,2]
[392950758,1762168232127,-213.76815866,0.00014424,2]
[392950761,1762168232136,-150.0,0.00014424,2]
[392950764,1762168232145,-124.97124171,0.00014444,2]
[392950768,1762168232157,-955.04341264,0.00014444,2]
[392950771,1762168232168,-600.98534565,0.00014444,2]
[392950774,1762168232177,-500.0,0.00014496,2]
[392950777,1762168232186,-150.0,0.00014612,2]
[392950780,1762168232195,-168.0,0.0001467,2]
[392950783,1762168232205,-209.61201441,0.00014688,2]
[392950785,1762168232215,-1825.40381448,0.00014699,2]
[392950788,1762168232225,-1825.40381442,0.00014721,2]
[392950790,1762168232234,-1200.0,0.00014741,2]
[392950791,1762168232244,-1200.0,0.00014742,2]
[392950792,1762168232253,-300.0,0.00014743,2]
[392950794,1762168232262,-300.0,0.00014743,2]
[392950796,1762168232271,-1825.40381442,0.00014744,2]
[392950798,1762168232281,-1000.0,0.00014756,2]
[392950800,1762168232290,-2500.0,0.00014756,2]
[392950802,1762168232299,-1825.40381442,0.00014766,2]
[392950804,1762168232308,-500.0,0.00014779,2]
[392950806,1762168232318,-500.0,0.00014779,2]
[392950808,1762168232326,-500.0,0.00014779,2]
[392950810,1762168232335,-642.80411728,0.00014779,2]
[392950812,1762168232344,-500.0,0.00014779,2]
[392950814,1762168232355,-500.0,0.00014779,2]
[392950816,1762168232364,-350.0,0.00014779,2]
[392950818,1762168232373,-152.97262088,0.00014779,2]
[392950820,1762168232382,-692.86,0.00014779,2]
[392950822,1762168232391,-150.0,0.00014779,2]
[392950825,1762168232401,-141021.66436444,0.0001478,2]
[392950828,1762168232410,-1825.40381442,0.00014788,2]
[392950832,1762168232419,-150.0,0.00014799,2]
[392950834,1762168232428,-168.0,0.00014801,2]
[392950837,1762168232437,-1825.40381442,0.00014811,2]
[392950839,1762168232446,-1900.2480381,0.00014832,2]
[392950842,1762168232456,-1825.40381442,0.00014833,2]
[392950844,1762168232465,-3110.501416,0.00014837,2]
[392950846,1762168232475,-151.0,0.00014853,2]
[392950848,1762168232489,-1825.40381442,0.00014855,2]
[392950850,1762168232498,-2127.05703648,0.00014856,2]
[392950852,1762168232509,-32871.00193952,0.00014856,2]
[392950854,1762168232520,-13604.0161694,0.00014856,2]
[392950856,1762168232533,-894.0,0.00014862,2]
[392950858,1762168232542,-3929.7610406,0.00014871,2]
[392950860,1762168232551,-1825.40381442,0.00014878,2]
[392950862,1762168232561,-527.76221612,0.00014879,2]
[392950864,1762168232570,-332.10830676,0.00014882,2]
[392950866,1762168232580,-1488.90533902,0.00014882,2]
[392950868,1762168232590,-174.23062065,0.00014882,2]
[392950870,1762168232599,-1488.90533896,0.00014884,2]
[392950872,1762168232608,-1488.90533896,0.00014886,2]
[392950874,1762168232617,-1488.90533896,0.00014888,2]
[392950876,1762168232627,-1488.90533896,0.0001489,2]
[392950878,1762168232636,-1488.90533896,0.00014892,2]
[392950881,1762168232646,-1488.90533896,0.00014894,2]
[392950883,1762168232655,-1488.90533896,0.00014896,2]
[392950884,1762168232664,-1488.90533896,0.00014898,2]
[392950886,1762168232673,-429.78438894,0.000149,2]
[392950889,1762168232683,-1825.40381442,0.000149,2]
[392950891,1762168232692,-1488.90533896,0.000149,2]
[392950893,1762168232701,-182.19550096,0.000149,2]
[392950895,1762168232710,-217.69945836,0.000149,2]
[392950897,1762168232719,-3203.0,0.00014909,2]
[392950899,1762168232728,-905.0,0.00014933,2]
[392950901,1762168232738,-150.0,0.00014944,2]
[392950903,1762168232747,-500.0,0.00014972,2]
[392950904,1762168232755,-500.0,0.00014972,2]
[392950907,1762168232765,-500.0,0.00014972,2]
[392950908,1762168232774,-500.0,0.00014972,2]
[392950910,1762168232783,-500.0,0.00014973,2]
[392950912,1762168232796,-500.0,0.00014973,2]
[392950914,1762168232805,-449.38309733,0.00014973,2]
[392950917,1762168232815,-648.2935781,0.00014973,2]
[392950919,1762168232824,-140.72076733,0.00014973,2]
[392950921,1762168232837,-359.27923267,0.00014973,2]
[392950923,1762168232846,-230.13204134,0.00014973,2]
[392950925,1762168232857,-269.86795866,0.00014973,2]
[392950927,1762168232866,-80.13204134,0.00014973,2]
[392950938,1762168232954,500.0,0.00036954,120]
[392950973,1762168233269,208.16128479,0.00036954,120]
[392950977,1762168233294,-419.86795866,0.00014973,2]
[392950979,1762168233304,-565.47693771,0.00014973,2]
[392950981,1762168233313,-501.45216881,0.00014973,2]
[392950983,1762168233323,-347.20293482,0.00014973,2]
[392951001,1762168233486,260.37437423,0.00036954,120]
[392951014,1762168233600,282.33864715,0.00036954,120]
[392951091,1762168234392,250.0,0.00036954,120]
[392951153,1762168234974,222.26725906,0.00036954,120]
[392951243,1762168235957,285.40016509,0.00036954,120]
[392951252,1762168236544,500.0,0.00036954,120]
[392951253,1762168236679,335.04586822,0.00036954,120]
[392951254,1762168236723,200.0,0.00014224,2]
[392951255,1762168236813,500.0,0.00036954,120]
[392951256,1762168237018,500.0,0.00036954,120]
[392951257,1762168237268,500.0,0.00036954,120]
[392951258,1762168237505,500.0,0.00036954,120]
[392951259,1762168237745,500.0,0.00036954,120]
[392951267,1762168237835,305.22788929,0.00036954,120]
[392951270,1762168237918,500.0,0.00036954,120]
[392951271,1762168238008,274.32435759,0.00036954,120]
[392951272,1762168238107,500.0,0.00036954,120]
[392951273,1762168238202,500.0,0.00036954,120]
[392951274,1762168238240,-823.5504271,0.00014933,2]
[392951279,1762168238328,500.0,0.00036954,120]
[392951281,1762168238341,-363.4495729,0.00014933,2]
[392951283,1762168238350,-136.5504271,0.00014973,2]
[392951284,1762168238362,-16.24663808,0.00014973,2]
[392951285,1762168238371,-283.75336192,0.00014973,2]
[392951286,1762168238383,-223.02600888,0.00014973,2]
[392951287,1762168238392,-500.0,0.00014973,2]
[392951288,1762168238403,-206.9660608,0.00014973,2]
[392951289,1762168238413,-150.0,0.00014973,2]
[392951290,1762168238424,-150.0,0.00014973,2]
[392951291,1762168238433,-150.0,0.00014973,2]
[392951292,1762168238448,-150.0,0.00014973,2]
[392951293,1762168238459,-777.0,0.00014973,2]
[392951294,1762168238469,-150.0,0.00014973,2]
[392951295,1762168238481,-150.0,0.00014973,2]
[392951296,1762168238492,-500.0,0.00014973,2]
[392951297,1762168238502,-150.0,0.00014973,2]
[392951298,1762168238513,-241.19254604,0.00014973,2]
[392951299,1762168238524,-563.0,0.00014973,2]
[392951300,1762168238534,-151.0,0.00014977,2]
[392951301,1762168238544,-500.0,0.00014979,2]
[392951302,1762168238555,-5161.79461227,0.0001498,2]
[392951303,1762168238568,-939.23805153,0.0001498,2]
[392951304,1762168238661,500.0,0.00036954,120]
[392951305,1762168238753,500.0,0.00036954,120]
[392951306,1762168238839,500.0,0.00036954,120]
[392951307,1762168238930,375.75754513,0.00036954,120]
[392951308,1762168239029,500.0,0.00036954,120]
[392951309,1762168239115,500.0,0.00036954,120]
[392951310,1762168239210,500.0,0.00036954,120]
[392951311,1762168239297,500.0,0.00036954,120]
[392951312,1762168239388,500.0,0.00036954,120]
[392951313,1762168239478,500.0,0.00036954,120]
[392951314,1762168239579,500.0,0.00036954,120]
[392951315,1762168239659,500.0,0.00036954,120]
[392951316,1762168239749,500.0,0.00036954,120]
[392951317,1762168239833,500.0,0.00036954,120]
[392951319,1762168239970,167.29430676,0.00036954,120]
[392951321,1762168240057,500.0,0.00036954,120]
[392951322,1762168240159,-290.99280847,0.00014798,2]
[392951323,1762168240171,-1315.65719153,0.0001498,2]
[392951324,1762168240270,500.0,0.00036954,120]
[392951325,1762168240283,-545.18420362,0.00014779,2]
[392951326,1762168240292,-1327.74213102,0.0001498,2]
[392951327,1762168240303,-2718.43077279,0.0001498,2]
[392951328,1762168240325,-296.16242959,0.0001498,2]
[392951329,1762168240336,-311.41144828,0.0001498,2]
[392951330,1762168240347,-866.31182605,0.0001498,2]
[392951331,1762168240452,-1116.0605949,0.0001498,2]
[392951332,1762168240536,500.0,0.00036954,120]
[392951333,1762168240622,222.50444356,0.00036954,120]
[392951334,1762168240635,-3418.28121723,0.0001498,2]
[392951335,1762168240646,-1839.33750006,0.0001498,2]
[392951336,1762168240736,500.0,0.00036954,120]
[392951339,1762168240930,500.0,0.00036954,120]
[392951340,1762168241237,460.77080497,0.00036954,120]
[392951341,1762168241540,173.63309586,0.00036954,120]
[392951342,1762168241623,500.0,0.00036954,120]
[392951343,1762168241710,208.83587758,0.00036954,120]
[392951344,1762168241802,500.0,0.00036954,120]
[392951345,1762168241928,500.0,0.00036954,120]
[392951346,1762168242052,500.0,0.00036954,120]
[392951347,1762168242287,500.0,0.00036954,120]
[392951348,1762168242528,500.0,0.00036954,120]
[392951350,1762168242787,500.0,0.00036954,120]
[392951358,1762168243039,500.0,0.00036954,120]
[392951360,1762168243185,417.58911661,0.00036954,120]
[392951361,1762168243281,500.0,0.00036954,120]
[392951362,1762168243356,-420.0,0.00014973,2]
[392951363,1762168243365,-1729.8,0.0001498,2]
[392951364,1762168243547,500.0,0.00036954,120]
[392951366,1762168243883,500.0,0.00036954,120]
[392951367,1762168243968,500.0,0.00036954,120]
[392951368,1762168244116,500.0,0.00036954,120]
[392951369,1762168244202,500.0,0.00036954,120]
[392951370,1762168244340,500.0,0.00036954,120]
[392951371,1762168244441,500.0,0.00036954,120]
[392951372,1762168244576,500.0,0.00036954,120]
[392951373,1762168244679,500.0,0.00036954,120]
[392951374,1762168244764,183.40213493,0.00036954,120]
[392951375,1762168244848,411.71058573,0.00036954,120]
[392951376,1762168244928,500.0,0.00036954,120]
[392951377,1762168245010,414.23312255,0.00036954,120]
[392951378,1762168245464,403.49246872,0.00036954,120]
[392951408,1762168246538,489.41573813,0.00036954,120]
[392951409,1762168246657,273.08675357,0.00036954,120]
[392951410,1762168248308,393.27410891,0.00036954,120]
[392951411,1762168249747,500.0,0.00036954,120]
[392951412,1762168250064,500.0,0.00036954,120]
[392951413,1762168250292,500.0,0.00036954,120]
[392951414,1762168250517,500.0,0.00036954,120]
[392951415,1762168250602,500.0,0.00036954,120]
[392951416,1762168250753,500.0,0.00036954,120]
[392951417,1762168250836,352.39314533,0.00036954,120]
[392951418,1762168250918,500.0,0.00036954,120]
[392951419,1762168251002,500.0,0.00036954,120]
[392951420,1762168251088,500.0,0.00036954,120]
[392951421,1762168251234,500.0,0.00036954,120]
[392951422,1762168251540,500.0,0.00036954,120]
[392951423,1762168251647,500.0,0.00036954,120]
[392951424,1762168251737,500.0,0.00036954,120]
[392951425,1762168251870,169.73207824,0.00036954,120]
[392951426,1762168251976,500.0,0.00036954,120]
[392951427,1762168252067,500.0,0.00036954,120]
[392951428,1762168252157,500.0,0.00036954,120]
[392951429,1762168252256,500.0,0.00036954,120]
[392951430,1762168252354,500.0,0.00036954,120]
[392951431,1762168252447,500.0,0.00036954,120]
[392951432,1762168252576,500.0,0.00036954,120]
[392951433,1762168252767,500.0,0.00036954,120]
[392951434,1762168252861,500.0,0.00036954,120]
[392951435,1762168253031,479.8649564,0.00036954,120]
[392951436,1762168253125,500.0,0.00036954,120]
[392951437,1762168253219,500.0,0.00036954,120]
[392951438,1762168253336,500.0,0.00036954,120]
[392951439,1762168253430,500.0,0.00036954,120]
[392951440,1762168253537,500.0,0.00036954,120]
[392951441,1762168253632,500.0,0.00036954,120]
[392951442,1762168253728,224.10282405,0.00036954,120]
[392951443,1762168253823,500.0,0.00036954,120]
[392951444,1762168253917,500.0,0.00036954,120]
[392951445,1762168254015,500.0,0.00036954,120]
[392951446,1762168254120,500.0,0.00036954,120]
[392951447,1762168254219,500.0,0.00036954,120]
[392951448,1762168254332,500.0,0.00036954,120]
[392951449,1762168254427,500.0,0.00036954,120]
[392951450,1762168254532,500.0,0.00036954,120]
[392951451,1762168254640,500.0,0.00036954,120]
[392951452,1762168254736,500.0,0.00036954,120]
[392951453,1762168254894,500.0,0.00036954,120]
[392951454,1762168254990,291.53064422,0.00036954,120]
[392951455,1762168255194,500.0,0.00036954,120]
[392951456,1762168255293,500.0,0.00036954,120]
[392951457,1762168255416,500.0,0.00036954,120]
[392951458,1762168255513,500.0,0.00036954,120]
[392951459,1762168255610,562.09,0.00036954,120]
[392951460,1762168255706,500.0,0.00036954,120]
[392951461,1762168255810,500.0,0.00036954,120]
[392951462,1762168255904,562.09,0.00036954,120]
[392951463,1762168255997,500.0,0.00036954,120]
[392951464,1762168256089,500.0,0.00036954,120]
[392951465,1762168256182,562.09,0.00036954,120]
[392951466,1762168256280,500.0,0.00036954,120]
[392951467,1762168256374,500.0,0.00036954,120]
[392951468,1762168256467,562.09,0.00036954,120]
[392951469,1762168256564,336.16726969,0.00036954,120]
[392951470,1762168256663,646.9250448,0.00036954,120]
[392951471,1762168256755,562.09,0.00036954,120]
[392951472,1762168256896,562.09,0.00036954,120]
[392951473,1762168256990,500.0,0.00036954,120]
[392951474,1762168257081,562.09,0.00036954,120]
[392951475,1762168257199,562.09,0.00036954,120]
[392951476,1762168257290,500.0,0.00036954,120]
[392951477,1762168257574,562.09,0.00036954,120]
[392951478,1762168257659,339.05099343,0.00036954,120]
[392951479,1762168257814,562.09,0.00036954,120]
[392951480,1762168258343,7724.0,0.00027397,120]
[392951481,1762168258431,562.09,0.00036954,120]
[392951482,1762168258517,330.99369102,0.00036954,120]
[392951483,1762168258604,562.09,0.00036954,120]
[392951484,1762168258690,562.09,0.00036954,120]
[392951485,1762168258771,562.09,0.00036954,120]
[392951486,1762168258954,562.09,0.00036954,120]
[392951487,1762168259195,562.09,0.00036954,120]
[392951488,1762168259391,451.09162518,0.00036954,120]
[392951489,1762168259480,562.09,0.00036954,120]
[392951490,1762168259589,323.21812378,0.00036954,120]
[392951491,1762168259629,150.0,0.00014293,2]
[392951492,1762168259864,150.0,0.00014293,120]
[392951493,1762168260057,277.72693034,0.00036954,120]
[392951494,1762168260150,562.09,0.00036954,120]
[392951495,1762168260334,562.09,0.00036954,120]
[392951496,1762168260542,500.0,0.00036954,120]
[392951497,1762168260637,562.09,0.00036954,120]
[392951498,1762168260784,500.0,0.00036954,120]
[392951499,1762168260881,562.09,0.00036954,120]
[392951500,1762168260981,448.45304725,0.00036954,120]
[392951501,1762168261104,562.09,0.00036954,120]
[392951502,1762168261194,500.0,0.00036954,120]
[392951503,1762168261344,562.09,0.00036954,120]
[392951504,1762168261441,477.19835918,0.00036954,120]
[392951505,1762168261798,562.17090609,0.00036954,120]
[392951506,1762168261898,500.0,0.00036954,120]
[392951507,1762168262000,394.59671607,0.00036954,120]
[392951508,1762168262093,500.0,0.00036954,120]
[392951509,1762168262320,500.0,0.00036954,120]
[392951510,1762168262570,500.0,0.00036954,120]
[392951511,1762168262691,441.69574441,0.00036954,120]
[392951512,1762168262890,500.0,0.00036954,120]
[392951513,1762168263138,525.16528002,0.00036954,120]
[392951514,1762168263817,238.79914717,0.00036954,120]
[392951515,1762168263977,381.61478163,0.00036954,120]
[392951516,1762168264446,310.67528023,0.00036954,120]
[392951517,1762168265304,500.0,0.00036954,120]
[392951518,1762168265549,500.0,0.00036954,120]
[392951519,1762168265781,500.0,0.00036954,120]
[392951520,1762168266022,500.0,0.00036954,120]
[392951521,1762168266260,500.0,0.00036954,120]
[392951522,1762168266490,500.0,0.00036954,120]
[392951523,1762168266581,318.24345233,0.00036954,120]
[392951524,1762168266671,285.96505451,0.00036954,120]
[392951525,1762168266765,500.0,0.00036954,120]
[392951526,1762168266971,500.0,0.00036954,120]
[392951527,1762168267188,500.0,0.00036954,120]
[392951528,1762168267275,500.0,0.00036954,120]
[392951529,1762168267412,500.0,0.00036954,120]
[392951530,1762168267500,500.0,0.00036954,120]
[392951531,1762168267646,500.0,0.00036954,120]
[392951532,1762168267732,500.0,0.00036954,120]
[392951533,1762168267899,500.0,0.00036954,120]
[392951534,1762168268046,500.0,0.00036954,120]
[392951535,1762168268135,500.0,0.00036954,120]
[392951536,1762168268293,500.0,0.00036954,120]
[392951537,1762168268380,500.0,0.00036954,120]
[392951538,1762168268478,500.0,0.00036954,120]
[392951539,1762168268775,500.0,0.00036954,120]
[392951540,1762168268863,555.25463021,0.00036954,120]
[392951541,1762168268950,500.0,0.00036954,120]
[392951542,1762168269047,500.0,0.00036954,120]
[392951543,1762168269136,500.0,0.00036954,120]
[392951544,1762168269234,440.84077289,0.00036954,120]
[392951545,1762168269323,500.0,0.00036954,120]
[392951546,1762168269495,500.0,0.00036954,120]
[392951547,1762168269584,237.34773601,0.00036954,120]
[392951548,1762168269733,500.0,0.00036954,120]
[392951549,1762168269986,500.0,0.00036954,120]
[392951550,1762168270212,500.0,0.00036954,120]
[392951551,1762168270358,228.14369834,0.00036954,120]
[392951552,1762168270452,500.0,0.00036954,120]
[392951553,1762168270708,500.0,0.00036954,120]
[392951554,1762168270960,500.0,0.00036954,120]
[392951555,1762168271048,268.52539408,0.00036954,120]
[392951556,1762168271206,500.0,0.00036954,120]
[392951557,1762168271451,500.0,0.00036954,120]
[392951558,1762168271700,500.0,0.00036954,120]
[392951559,1762168272004,524.33947996,0.00036954,120]
[392951560,1762168272490,170.78732482,0.00036954,120]
[392951561,1762168272578,190.75448973,0.00036954,120]
[392951562,1762168273072,401.05776807,0.00036954,120]
[392951563,1762168273938,500.0,0.00036954,30]
[392951564,1762168274198,482.95754938,0.00036954,120]
[392951565,1762168274527,500.0,0.00036954,30]
[392951566,1762168274633,414.33427249,0.00036954,120]
[392951567,1762168274797,500.0,0.00036954,30]
[392951568,1762168274893,451.89894414,0.00036954,120]
[392951569,1762168275054,500.0,0.00036954,30]
[392951570,1762168275299,500.0,0.00036954,30]
[392951571,1762168275531,500.0,0.00036954,30]
[392951572,1762168275805,500.0,0.00036954,30]
[392951573,1762168276056,500.0,0.00036954,30]
[392951574,1762168276261,308.89890691,0.00036954,120]
[392951575,1762168276397,500.0,0.00036954,30]
[392951576,1762168276513,453.3356825,0.00036954,120]
[392951577,1762168276602,281.04480739,0.00036954,120]
[392951578,1762168276688,500.0,0.00036954,30]
[392951579,1762168276803,500.0,0.00036954,30]
[392951580,1762168277041,500.0,0.00036954,30]
[392951581,1762168277305,500.0,0.00036954,30]
[392951582,1762168277493,500.0,0.00036954,60]
[392951583,1762168277582,500.0,0.00036954,30]
[392951584,1762168277732,500.0,0.00036954,60]
[392951585,1762168277820,500.0,0.00036954,30]
[392951586,1762168278049,500.0,0.00036954,30]
[392951587,1762168278309,500.0,0.00036954,30]
[392951588,1762168278415,484.45992339,0.00036954,60]
[392951589,1762168278589,500.0,0.00036954,30]
[392951590,1762168278705,500.0,0.00036954,120]
[392951591,1762168278817,500.0,0.00036954,30]
[392951592,1762168278938,500.0,0.00036954,120]
[392951593,1762168279054,500.0,0.00036954,30]
[392951594,1762168279143,239.79212596,0.00036954,120]
[392951595,1762168279239,500.0,0.00036954,120]
[392951596,1762168279323,500.0,0.00036954,30]
[392951597,1762168279408,500.0,0.00036954,120]
[392951598,1762168279520,500.0,0.00036954,30]
[392951599,1762168279639,500.0,0.00036954,120]
[392951600,1762168279766,500.0,0.00036954,30]
[392951601,1762168279880,383.93140907,0.00036954,120]
[392951602,1762168280378,305.8442234,0.00036954,30]
[392951603,1762168282331,500.0,0.00036954,120]
[392951604,1762168282418,158.84476139,0.00036954,120]
[392951605,1762168282524,500.0,0.00036954,120]
[392951606,1762168282693,500.0,0.00036954,120]
[392951607,1762168282859,479.63592788,0.00036954,120]
[392951608,1762168282949,500.0,0.00036954,120]
[392951609,1762168283233,500.0,0.00036954,120]
[392951610,1762168283324,445.88376677,0.00036954,120]
[392951611,1762168283468,500.0,0.00036954,120]
[392951612,1762168283713,500.0,0.00036954,120]
[392951613,1762168283953,319.83766916,0.00036954,120]
[392951614,1762168284769,176.34304599,0.00036954,120]
[392951615,1762168285347,500.0,0.00014251,2]
[392951616,1762168285625,229.37190368,0.00036954,120]
[392951617,1762168286478,500.0,0.00036954,120]
[392951618,1762168286745,500.0,0.00036954,120]
[392951619,1762168287025,500.0,0.00036954,120]
[392951620,1762168287566,166.52,0.00014257,2]
[392951621,1762168287840,474.01770673,0.00036954,120]
[392951622,1762168288151,387.15506686,0.00036954,120]
[392951623,1762168288663,468.98620206,0.00036954,120]
[392951624,1762168288866,205.16229667,0.00036954,120]
[392951625,1762168290157,500.0,0.00036954,30]
[392951626,1762168290404,500.0,0.00036954,30]
[392951627,1762168290651,500.0,0.00036954,30]
[392951628,1762168290902,500.0,0.00036954,30]
[392951629,1762168291130,522.51346642,0.00036954,30]
[392951630,1762168291231,500.0,0.00036954,120]
[392951631,1762168291444,500.0,0.00036954,120]
[392951632,1762168291683,500.0,0.00036954,120]
[392951633,1762168291783,500.0,0.00036954,120]
[392951634,1762168291910,500.0,0.00036954,120]
[392951635,1762168292012,500.0,0.00036954,120]
[392951636,1762168292171,500.0,0.00036954,120]
[392951637,1762168292261,500.0,0.00036954,120]
[392951638,1762168292585,500.0,0.00036954,120]
[392951639,1762168292670,500.0,0.00036954,120]
[392951640,1762168292768,500.0,0.00036954,120]
[392951641,1762168292867,500.0,0.00036954,120]